Cogmind - Beta 10.2 *** ADVENTURER MODE // 2021.09.21 @ 21:57:06 Player: moonlol Result: Self-destructed Performance ------------- Evolutions (3) 1500 Regions Visited (6) 1200 Robots Destroyed (42) 210 Value Destroyed (1312) 1312 Prototype IDs (25) 500 Alien Tech Used (0) 0 Bonus (224) 224 TOTAL SCORE: 4946 Bonus ------- Follower Combat Kills 77 Aligned with FarCom 300 Friendly Fire -153 Cogmind --------- Core Integrity 597/700 Matter 186/300 Energy 160/160 System Corruption 0% Temperature Cool (0) Movement Walking (120) Location -7/Factory Parts ------- > --- POWER (2) -------- Light Nuclear Core > --- PROPULSION (3) --- Aluminum Leg Aluminum Leg Aluminum Leg > --- UTILITY (4) ------ Small Storage Unit Improved Signal Interpreter Improved Medium Armor Plating Hacking Suite > --- WEAPON (4) ------- AWS/Thermal Minigun > --- INVENTORY (6) ---- Flight Unit Flight Unit Cesium-ion Thruster Improved Sensor Array Rocket Launcher Peak State ------------ > --- POWER ------------ Light Nuclear Core > --- PROPULSION ------- Aluminum Leg Aluminum Leg Aluminum Leg > --- UTILITY ---------- Small Storage Unit Improved Signal Interpreter Improved Medium Armor Plating Hacking Suite > --- WEAPON ----------- AWS/Thermal Minigun Rocket Launcher > --- INVENTORY -------- Flight Unit Flight Unit Cesium-ion Thruster Improved Sensor Array [Rating: 37] Favorites ----------- Power Light Nuclear Core Engine Ion Engine Power Core Light Nuclear Core Propulsion Aluminum Leg Leg Aluminum Leg Flight Unit Flight Unit Utility Small Storage Unit Device Sensor Array Storage Small Storage Unit Processor Signal Interpreter Hackware Hacking Suite Protection Improved Medium Armor Plating Weapon AWS/Thermal Energy Gun AWS/Thermal Energy Cannon Heavy Particle Cannon Ballistic Gun Minigun Launcher Rocket Launcher Special Melee Weapon Datajack Build | -11 -10 -10 -10 -9 -8 -7 ------- Run | Scr Mat Min Exi Min Mat Fac Slots Evolved 6 | . . . . . 4 2 Power 1 | . . . . . . 1 Propulsion 1 | . . . . . 1 . Utility 2 | . . . . . 2 . Weapon 2 | . . . . . 1 1 Parts Attached 48 | 6 13 5 3 . 19 2 Power 4 | 1 1 1 . . 1 . Engine 3 | 1 1 1 . . . . Core 1 | . . . . . 1 . Reactor . | . . . . . . . Propulsion 23 | 2 5 2 2 . 12 . Treads . | . . . . . . . Leg 15 | 2 3 2 2 . 6 . Wheel . | . . . . . . . Hover . | . . . . . . . Flight 8 | . 2 . . . 6 . Utility 9 | 1 3 . . . 4 1 Device 1 | . 1 . . . . . Storage 2 | 1 1 . . . . . Processor 4 | . 1 . . . 3 . Hackware 1 | . . . . . 1 . Protection 1 | . . . . . . 1 Artifact . | . . . . . . . Weapon 12 | 2 4 2 1 . 2 1 Energy Gun 7 | 2 3 1 1 . . . Energy Cannon 1 | . . . . . 1 . Ballistic Gun 2 | . . 1 . . 1 . Ballistic Cannon . | . . . . . . . Launcher 1 | . . . . . . 1 Special Weapon . | . . . . . . . Impact Weapon . | . . . . . . . Slashing Weapon . | . . . . . . . Piercing Weapon . | . . . . . . . Special Melee Weapon 1 | . 1 . . . . . Unidentified Prototypes . | . . . . . . . Parts Lost 1 | . . . . . 1 . Power . | . . . . . . . Propulsion . | . . . . . . . Utility 1 | . . . . . 1 . Weapon . | . . . . . . . Highest Loss Streak 1 | . . . . . 1 . Average Slot Usage (%) 91 | . 98 100 89 85 88 76 Engine 8 | . 14 14 14 14 . . Core 3 | . . . . . 8 7 Leg 26 | . 27 28 27 28 25 23 Device 1 | . 4 . . . . . Storage 11 | . 14 14 14 14 9 7 Processor 16 | . 8 14 14 14 25 7 Energy Gun 15 | . 27 16 14 14 9 7 Energy Cannon 2 | . . . . . 7 . Ballistic Gun 2 | . . 11 4 . 1 7 Naked Turns . | . . . . . . . Heaviest Build 27 | 13 14 12 15 15 23 27 Greatest Support 30 | 20 20 20 20 20 30 30 Greatest Overweight (x) 7 | 3 1 . 3 . 7 . Average Overweight (x) . | . . . . . . . Largest Inventory Capacity 6 | 6 6 6 6 6 6 6 Average Capacity 5 | 5 5 6 6 6 6 6 Most Carried 6 | 5 6 6 6 6 6 5 Average Carried 5 | 3 5 6 6 5 5 4 Final Capacity 6 | 6 6 6 6 6 6 6 Final Carried 6 | 4 6 6 6 6 5 5 Class Distribution -------------------- 41% | Scavenger-Skirmisher 31% | Mutant 27% | Scavenger-Mutant Dominant Class ---------------- Mutant | -10/Materials Scavenger-Mutant | -10/Mines Scavenger-Mutant | -10/Exiles Scavenger-Mutant | -9/Mines Scavenger-Skirmisher | -8/Materials Scavenger-Skirmisher | -7/Factory Resources | -11 -10 -10 -10 -9 -8 -7 ----------- Run | Scr Mat Min Exi Min Mat Fac Matter Collected 678 | 192 176 69 . 27 214 . Remotely . | . . . . . . . Salvage Created 1586 | . 377 137 . . 1013 59 Parts 76 | . 15 9 . . 49 3 Haulers Intercepted . | . . . . . . . Recyclers Shooed 1 | . . . . . 1 . Parts Field Recycled . | . . . . . . . Retrieved Matter . | . . . . . . . Parts Self-Destructed . | . . . . . . . Prevented . | . . . . . . . Kills | -11 -10 -10 -10 -9 -8 -7 ------- Run | Scr Mat Min Exi Min Mat Fac Combat Hostiles Destroyed 33 | . 8 5 . . 18 2 Guns 27 | . 5 5 . . 15 2 Cannons 3 | . . . . . 3 . AOE 3 | . 3 . . . . . Classes Destroyed 9 | . 4 . . . 3 2 Worker 1 | . 1 . . . . . Builder 1 | . . . . . . 1 Operator 1 | . . . . . 1 . Watcher 5 | . 2 . . . 3 . Swarmer 9 | . 3 3 . . 2 1 Grunt 17 | . 5 2 . . 10 . Brawler 1 | . . . . . 1 . Duelist 1 | . . . . . . 1 Sentry 6 | . . . . . 6 . Best Kill Streak 6 | . 4 3 . . 6 3 Combat Bots Only 6 | . 3 3 . . 6 2 Max Kills in Single Turn 3 | . 3 1 . . 1 2 Gunslinging . | . . . . . . . Exploded 2 | . 2 . . . . . Melee . | . . . . . . . Uniques/NPCs Destroyed . | . . . . . . . Combat | -11 -10 -10 -10 -9 -8 -7 -------- Run | Scr Mat Min Exi Min Mat Fac Damage Taken 1130 | . 232 192 . . 148 558 Core 215 | . 48 47 . . 17 103 Absorbed by Shields . | . . . . . . . Core Remaining (%) 86 | 100 . . . 62 96 . Volleys Fired 72 | . 19 15 . . 20 18 Largest 2 | . 2 2 . . 1 2 Hottest 80 | . 80 80 . . 75 58 Shots Fired 161 | . 38 30 . . 65 28 Gun 143 | . 38 30 . . 49 26 Cannon 16 | . . . . . 16 . Launcher 2 | . . . . . . 2 Special . | . . . . . . . Kinetic 31 | . . 9 . . 4 18 Thermal 87 | . 3 15 . . 61 8 Explosive 2 | . . . . . . 2 Electromagnetic 41 | . 35 6 . . . . Robot Hit Streak 27 | . 27 12 . . 22 16 Robot Miss Streak 2 | . 1 2 . . 2 1 Penetration Max . | . . . . . . . Secondary Targets 3 | . . 3 . . . . Max Gunslinging Chain 1 | . . 1 . . . . Autonomous 54 | . . . . . 45 9 Shots Hit Robots 139 | . 37 19 . . 59 24 Core Hits 59 | . 15 9 . . 29 6 Critical Hits 2 | . . . . . 2 . Critical Kills 2 | . . . . . 2 . Critical Parts Destroyed . | . . . . . . . Melee Attacks 3 | . 3 . . . . . Impact . | . . . . . . . Slashing . | . . . . . . . Piercing . | . . . . . . . Sneak Attacks 3 | . 3 . . . . . Combat Hostiles . | . . . . . . . Follow-up Attacks . | . . . . . . . Damage Inflicted 3062 | . 552 188 . . 1676 646 Guns 2378 | . 407 188 . . 1301 482 Cannons 375 | . . . . . 375 . Explosions 308 | . 144 . . . . 164 Melee . | . . . . . . . Ramming 1 | . 1 . . . . . Kinetic 358 | . . 53 . . 51 254 Thermal 2108 | . 154 101 . . 1625 228 Explosive 164 | . . . . . . 164 Electromagnetic 431 | . 397 34 . . . . Impact . | . . . . . . . Slashing . | . . . . . . . Piercing . | . . . . . . . Highest Corruption . | . . . . . . . Average Corruption . | . . . . . . . Corruption Purged . | . . . . . . . Overload Shots . | . . . . . . . Overflow Damage 50 | . . . . . 10 40 Projectiles 10 | . . . . . 10 . Explosions 40 | . . . . . . 40 Melee . | . . . . . . . Knockbacks . | . . . . . . . Impact . | . . . . . . . Kinetic . | . . . . . . . Secondary . | . . . . . . . Self-Inflicted Damage 101 | . 42 . . . . 59 Shots 4 | . 2 . . . . 2 Rammed 1 | . 1 . . . . . Targets Rammed 1 | . 1 . . . . . Kicked . | . . . . . . . Crushed . | . . . . . . . Highest Temperature 147 | . 147 109 . . 74 9 Average Temperature 49 | . 59 57 . . 31 7 Received Heat Transfer 321 | . 108 78 . . 72 63 Siege Activations . | . . . . . . . Robots Corrupted . | . . . . . . . Combat Hostiles . | . . . . . . . Parts Fried 1 | . 1 . . . . . Impact Corruptions . | . . . . . . . Robots Melted . | . . . . . . . Combat Hostiles . | . . . . . . . Parts Melted 4 | . . 1 . . 3 . Heat Transferred 2892 | . 225 225 . . 2146 296 Parts Sabotaged . | . . . . . . . Parts Stolen . | . . . . . . . Parts Stripped . | . . . . . . . Power Chain Reactions 2 | . 2 . . . . . Missiles Intercepted . | . . . . . . . Alert | -11 -10 -10 -10 -9 -8 -7 ------- Run | Scr Mat Min Exi Min Mat Fac Peak Influence 299 | . 134 135 . . 299 201 Initial 116 | . . . . . . 116 Average 79 | . 51 95 . . 107 145 Maximum Alert Level 1 | . . . . . 1 1 Low Security (%) 83 | 100 100 100 . 100 64 77 Level 1 16 | . . . . . 35 22 Level 2 . | . . . . . . . Level 3 . | . . . . . . . Level 4 . | . . . . . . . Level 5 . | . . . . . . . High Security . | . . . . . . . Max Security . | . . . . . . . Squads Dispatched 5 | . 1 . . . 3 1 Investigation 1 | . 1 . . . . . Extermination . | . . . . . . . Reinforcement 3 | . . . . . 2 1 Assault 1 | . . . . . 1 . Garrison . | . . . . . . . Intercept . | . . . . . . . Construction Impeded . | . . . . . . . Haulers Reinforced . | . . . . . . . Stealth | -11 -10 -10 -10 -9 -8 -7 --------- Run | Scr Mat Min Exi Min Mat Fac Distress Signals 2 | . 2 . . . . . Communications Jammed . | . . . . . . . Distress Signals . | . . . . . . . Times Spotted 45 | . 11 5 . . 26 3 Peak Tracking Total 4 | . 3 3 . . 4 3 Tactical Retreats 3 | . 1 . . . 1 1 Traps | -11 -10 -10 -10 -9 -8 -7 ------- Run | Scr Mat Min Exi Min Mat Fac Traps Triggered 2 | . 1 . . . . 1 Indirectly . | . . . . . . . Trap Hack Attempts . | . . . . . . . Triggered . | . . . . . . . Disarmed . | . . . . . . . Reprogrammed . | . . . . . . . Reused . | . . . . . . . Traps Extracted . | . . . . . . . Installed . | . . . . . . . Triggered . | . . . . . . . Machines | -11 -10 -10 -10 -9 -8 -7 ---------- Run | Scr Mat Min Exi Min Mat Fac Machines Disabled 2 | . 1 . . . 1 . Max in Single Turn 1 | . 1 . . . . . Machines Sabotaged . | . . . . . . . Garrisons Compromised . | . . . . . . . Overloaded Fab Kills . | . . . . . . . Fab Network Shutdowns . | . . . . . . . Hacking | -11 -10 -10 -10 -9 -8 -7 --------- Run | Scr Mat Min Exi Min Mat Fac Machines Accessed 15 | . 7 . 3 . 4 1 Terminals 9 | . 5 . . . 3 1 Fabricators . | . . . . . . . Repair Stations 1 | . 1 . . . . . Recycling Units 2 | . 1 . . . 1 . Scanalyzers . | . . . . . . . Garrison Access . | . . . . . . . Total Hacks 73 | . 25 . 33 . 13 2 Successful 59 | . 18 . 33 . 7 1 Failed 14 | . 7 . . . 6 1 Catastrophic 1 | . . . . . 1 . Database Lockouts . | . . . . . . . Manual 30 | . 16 . 1 . 11 2 Terminals 28 | . 18 . . . 8 2 Fabricators . | . . . . . . . Repair Stations 3 | . 3 . . . . . Recycling Units 9 | . 4 . . . 5 . Scanalyzers . | . . . . . . . Garrison Access . | . . . . . . . Terminal Hacks 37 | . 4 . 33 . . . Record 32 | . . . 32 . . . Prototype ID Bank 1 | . 1 . . . . . Terminal Index 1 | . 1 . . . . . Locate Traps 1 | . 1 . . . . . Zone Layout 1 | . 1 . . . . . EX-Prototype ID Bank 1 | . . . 1 . . . Fabricator Hacks . | . . . . . . . Repair Station Hacks 2 | . 2 . . . . . Scan Component 1 | . 1 . . . . . Repair 1 | . 1 . . . . . Recycling Unit Hacks 4 | . 2 . . . 2 . Report Inventory 2 | . 1 . . . 1 . Retrieve Components 2 | . 1 . . . 1 . Scanalyzer . | . . . . . . . Garrison Access Hacks . | . . . . . . . Unauthorized Hacks 16 | . 10 . . . 5 1 Terminals 12 | . 7 . . . 4 1 Track 3 | . 3 . . . . . Assimilate 1 | . . . . . 1 . Botnet 8 | . 4 . . . 3 1 Fabricators . | . . . . . . . Repair Stations 1 | . 1 . . . . . Mechanics 1 | . 1 . . . . . Recycling Units 3 | . 2 . . . 1 . Monitor 1 | . 1 . . . . . Recyclers 1 | . 1 . . . . . Mask 1 | . . . . . 1 . Scanalyzers . | . . . . . . . Garrison Access . | . . . . . . . Data Cores Recovered 1 | . . . . . 1 . Used . | . . . . . . . Hacking Detections 11 | . 6 . . . 4 1 Full Trace Events . | . . . . . . . Feedback Events . | . . . . . . . Feedback Blocked . | . . . . . . . Robot Schematics Acquired . | . . . . . . . Robots Built . | . . . . . . . Matter . | . . . . . . . Time . | . . . . . . . Total Robot Build Rating . | . . . . . . . Part Schematics Acquired . | . . . . . . . Parts Built . | . . . . . . . Matter . | . . . . . . . Time . | . . . . . . . Total Part Build Rating . | . . . . . . . Parts Repaired 1 | . 1 . . . . . Time 26 | . 26 . . . . . Parts Recycled . | . . . . . . . Recycled Matter . | . . . . . . . Retrieved Matter . | . . . . . . . Retrieved Components 14 | . 5 . . . 9 . Parts Scanalyzed . | . . . . . . . Part Schematics Acquired . | . . . . . . . Parts Damaged . | . . . . . . . Bothacking | -11 -10 -10 -10 -9 -8 -7 ------------ Run | Scr Mat Min Exi Min Mat Fac Used RIF Installer . | . . . . . . . Robots Hacked 1 | . 1 . . . . . Non-combat 1 | . 1 . . . . . Combat . | . . . . . . . Robot Hacks Applied 2 | . 2 . . . . . parse_system 1 | . 1 . . . . . no_distress 1 | . 1 . . . . . Relay Couplers Released . | . . . . . . . Robots Rewired . | . . . . . . . Allies Hacked . | . . . . . . . Hacks Repelled . | . . . . . . . Allies | -11 -10 -10 -10 -9 -8 -7 -------- Run | Scr Mat Min Exi Min Mat Fac Total Allies 4 | . . . . 4 . . Largest Group 4 | . . . . 4 4 . Highest-Rated Group 71 | . . . . 71 71 . Highest-Rated Ally 31 | . . . . 31 31 . Total Orders . | . . . . . . . Ally Attacks 19 | . . . . . 19 . Total Damage 258 | . . . . . 258 . Kills 4 | . . . . . 4 . Allies Corrupted . | . . . . . . . Allies Melted . | . . . . . . . Intel | -11 -10 -10 -10 -9 -8 -7 ------- Run | Scr Mat Min Exi Min Mat Fac Robot Analysis Total . | . . . . . . . Derelict Logs Recovered . | . . . . . . . Drone Launches . | . . . . . . . Drone Recoveries . | . . . . . . . Exploration | -11 -10 -10 -10 -9 -8 -7 ------------- Run | Scr Mat Min Exi Min Mat Fac Turns Passed 4266 | 84 1242 237 702 241 1553 207 Spaces Moved 2229 | 55 661 154 579 189 453 138 Core 38 | 34 . . 2 . 2 . Treads . | . . . . . . . Legs 2178 | 21 650 154 577 189 449 138 Wheels . | . . . . . . . Hover . | . . . . . . . Flight 13 | . 11 . . . 2 . Fastest Speed 37 | 50 37 120 120 120 114 120 Average Speed 120 | 123 119 120 120 120 124 120 Slowest Speed 400 | 200 150 120 200 120 400 120 Overloaded Moves . | . . . . . . . Propulsion Burnouts . | . . . . . . . Robots Hopped . | . . . . . . . Cave-ins Triggered . | . . . . . . . Exploration Rate (%) 40 | 5 78 19 90 52 35 6 Regions Visited 6 Branch Regions 3 Pre-discovered Areas 1 | . . . 1 . . . Known Exits Taken 5 | . 1 1 1 1 1 . Unknown Exits Taken 1 | 1 . . . . . . Scrap Searched 2 | . . . . 2 . . Spaces Dug . | . . . . . . . Terrain Destroyed 20 | . 6 . . . 2 12 Melee . | . . . . . . . Projectile 2 | . . . . . 2 . AOE 18 | . 6 . . . . 12 Terrain Rammed . | . . . . . . . Walls Destroyed . | . . . . . . . Machines Disabled . | . . . . . . . Actions | -11 -10 -10 -10 -9 -8 -7 --------- Run | Scr Mat Min Exi Min Mat Fac Total 3708 | 71 1079 180 585 204 1426 163 Wait 1289 | 1 356 . . 12 917 3 Move 2223 | 54 660 153 578 188 452 138 Hop . | . . . . . . . Pick Up 27 | 10 12 1 . 2 2 . Fast Attach 22 | . 7 2 3 . 9 1 Attach 19 | 6 3 . . . 9 1 Detach 9 | . . . . . 8 1 Swap 7 | . 3 3 . . 1 . Drop 36 | . 15 6 4 2 8 1 Fire 72 | . 19 15 . . 20 18 Melee 3 | . 3 . . . . . Ram . | . . . . . . . Kick 1 | . 1 . . . . . Crush . | . . . . . . . Escape Stasis . | . . . . . . . Rewire . | . . . . . . . Trap . | . . . . . . . Miscellaneous . | . . . . . . . Route ------- -11/Scrapyard -10/Materials (discovered 3 exits: *Mat x2 / *Min) -10/Mines -10/Exiles (discovered 2 exits: *Min x2) -9/Mines -8/Materials -7/Factory History --------- Turn | Location | Event 13 | -11/Scrapyard | Discovered new exit (range 16) 85 | -11/Scrapyard | Entered Materials 148 | -10/Materials | Discovered new exit (range 16) 305 | -10/Materials | Build established: Mutant 552 | -10/Materials | Identified exit to Materials 669 | -10/Materials | Repaired EM Pulse Gun 1187 | -10/Materials | Discovered exit to Materials (range 6) 1319 | -10/Materials | Discovered new exit (range 7) 1326 | -10/Materials | Identified exit to Mines 1327 | -10/Materials | Entered Mines 1400 | -10/Mines | Deemed a non-threat by the Exiles lab entrance 1400 | -10/Mines | Discovered new exit (range 5) 1405 | -10/Mines | Identified exit to Exiles 1564 | -10/Mines | Entered Exiles 1582 | -10/Exiles | Discovered new exit (range 15) 1596 | -10/Exiles | Met 8R-AWN 1618 | -10/Exiles | Met EX-HEX 1651 | -10/Exiles | Build established: Scavenger-Mutant 1713 | -10/Exiles | Met EX-BIN 1729 | -10/Exiles | Aligned with FarCom system 1730 | -10/Exiles | Given EX-Vault access code 1764 | -10/Exiles | Opened EX-Vault 1796 | -10/Exiles | Found AWS/Thermal 1834 | -10/Exiles | Warned to stay clear of 0b10 Research branches 1874 | -10/Exiles | Met EX-DEC 1884 | -10/Exiles | Learned location of Zion (-6) 1981 | -10/Exiles | Visited The Gauntlet 2253 | -10/Exiles | Discovered new exit (range 11) 2264 | -10/Exiles | Identified exit to Mines 2266 | -10/Exiles | Left Exiles lab with AWS/Thermal 2266 | -10/Exiles | Entered Mines 2267 | -9/Mines | Met a Derelict testing a Signal Generator 2271 | -9/Mines | Found Signal Generator 2318 | -9/Mines | Received a Mining Laser from a helpful Derelict 2395 | -9/Mines | Received a Rocket Launcher from a helpful Derelict 2432 | -9/Mines | Assisted by bots powering up and referring to "LRC-V3" 2478 | -9/Mines | Discovered new exit (range 14) 2496 | -9/Mines | Identified exit to Materials 2507 | -9/Mines | Entered Materials 2507 | -8/Materials | Accompanied by 4 allies 2507 | -8/Materials | Evolved 4 slots: Propulsion x1, Utility x2, Weapon x1 2796 | -8/Materials | Build established: Scavenger-Skirmisher 3872 | -8/Materials | Discovered new exit (range 11) 3901 | -8/Materials | Identified exit to Factory 4060 | -8/Materials | Entered Factory 4060 | -7/Factory | Evolved 2 slots: Power x1, Weapon x1 4267 | -7/Factory | Self-destructed Last Messages --------------- Triggered Ambush Trap. L-41 Fighter emerges from a hatch in the floor. G-47 Trooper emerges from a hatch in the floor. S-27 Virus emerges from a hatch in the floor. AWS/Thermal suddenly breaks down. Destroyed Particle Gun. U-05 Engineer lays Concrete. L-41 Fighter destroyed. U-05 Engineer destroyed. Destroyed VTOL Module. S-27 Virus destroyed. The unstable cave ceiling collapses. O-24 Administrator: "IFF HANDSHAKE FAILED. SECURING TERMINAL." The unstable cave ceiling collapses. ALERT: Hostiles spotted, dispatching reinforcements to Terminal F014. O-24 Administrator: "IFF HANDSHAKE FAILED. SECURING TERMINAL." [Achievement: Back For More] Map ----- +----------------------------------------------------+ | ?????????????????????????????????????????????????? | | ?????????????????????????????????????????????????? | | ?????????????????????????????????????????????????? | | ?????????????????????????????????????????????????? | | ?????????????????????????????????????????????????? | | ?????????????????????????????????????????????????? | | ?????????????????????????????????????????????????? | | ?????????????????????????????????????????????????? | | ????????????????????????? ?????????????????????? | | ????????????????????????? ?????????????????????? | | ????????????????????????? ?????????????????????? | | ????????????????????????? ?????????????????????? | | ????????????????????????? ??? ??????????? ? | | ????????????????????????? ??# #????????? # | | ????????????????????????? ### #?????????" # | | ????????????????????????? #?????????" # | | ????????????????????????? ? #?????" ?"" # | | ????????????????????????? ? #?????" "" # | | ?????????????????????????# #?# #?????" "" # | | ?????????????????????????# #?# #?????? # | | ?????????????????????????# #?# #???????? # | | ?????????????????????????# #?# #????????? # | | ?????????????????????????# #?# #????????### # | | ???????????????????#######+### #????????# | | ???????????????????# ## ##???????# = | | ???????????????????# @ # #???????# % | | ???????????????????# # ######### % | | ???????????????????# + | | ???????????????????# # ########## | | ???????????????????# # #?# | | ???????????????????# ### ###?# | | ???????????????????# #?# #???# | | ???????Y???????????# +? #???# | | ???????????????????############+#???# | | ????????????????????????????????????# | | ????????????????????????????????????# | | ????????????????????????????????????############## | | ??????????????????????????????????????????# | | ??????????????????????????????????????????# | | ??????????????????????????????????????????# | | ??????????????????????????????????????????# | | ???????????????????????????????????????? | | ???????????????????????????????????????#######+### | | ?????????????????????????????????????????????????? | | ?????????????????????????????????????????????????? | | ?????????????????????????????????????????????????? | | ?????????????????????????????????????????????????? | | ?????????????????????????????????????????????????? | | ?????????????????????????????????????????????????? | | ?????????????????????????????????????????????????? | +----------------------------------------------------+ Best States ------------- Heat Dissipation 34 Energy Generation 14 Energy Capacity 250 Matter Stores 300 Matter Capacity 300 Sight Range 16 Robot Scan Range 10 Terrain Scan Density 10 Armor Coverage 225 Resistance: KI 20 Resistance: TH 20 Resistance: EX 20 Resistance: EM 20 Resistance: I 20 Resistance: S 20 Resistance: P 20 Evasion (%) 50 Targeting Accuracy 5 Salvage Targeting 1 Offensive Hacking 20 Item Schematics ----------------- None Robot Schematics ------------------ None Fabricated ------------ Nothing Alien Tech Used ----------------- None Achievements -------------- Back For More Challenges ------------ None Game ------ Seed WavePotentialFlakker Manual? 0 Play Time 00:33:36 Cumulative 19.8 hours Start 2021.09.21 @ 21:24:01 End 2021.09.21 @ 21:57:06 Sessions 1 Manual Loads 0 Difficulty Adventurer Special Mode None Game No. 51 Rogue 43 Adventurer 8 Explorer 0 Win Type - Total 0 Types 0/0/0/0/0/0/0/0/0 Lore% 22 Gallery% 33 Achievement% 32 Wizard Run 0 Options --------- ASCII 0 Keyboard 0 Movement Numpad Keybinds 0 Fullscreen 1 Font 16/SmallcapsGlow Map View 50x54 Tactical HUD 0 Map Filters NONE Filters NONE Steam 1 RUN: 44cf51aa-70af-4023-8a1a-da27447e1805